bitfinex-derivatives/quotes_SOLF0:USTF0_20250716
["timestamp","ask_amount","ask_price","bid_price","bid_amount"]
[1752706475220,12.67941665,173.65,173.59,6.57237745]
[1752706475732,5.7572,173.6,173.59,6.57237745]
[1752706475927,8.8372,173.6,173.59,6.57237745]
[1752706476224,8.8372,173.6,173.59,3.28237745]
[1752706476426,3.08,173.6,173.55,3.29]
[1752706476626,3.08,173.6,173.52,3.28237745]
[1752706476833,5.7595,173.53,173.52,6.57237745]
[1752706477131,3.08,173.54,173.53,3.29]
[1752706477432,5.759,173.55,173.53,3.29]
[1752706477926,3.08,173.61,173.56,3.29]
[1752706478232,3.08,173.61,173.6,6.57237745]
[1752706478431,12.67941665,173.66,173.61,3.29]
[1752706478634,3.08,173.64,173.62,3.29]
[1752706478827,12.67941665,173.67,173.62,3.29]
[1752706479130,3.08,173.63,173.62,3.29]
[1752706479338,3.08,173.66,173.62,3.28237745]
[1752706479527,3.08,173.64,173.62,3.28237745]
[1752706479832,3.08,173.66,173.62,6.57237745]
[1752706480222,3.08,173.64,173.62,6.57237745]
[1752706480425,12.67941665,173.68,173.63,3.29]
[1752706480734,3.08,173.65,173.63,3.29]
[1752706480932,3.08,173.67,173.65,3.29]
[1752706481827,3.08,173.67,173.64,3.28237745]
[1752706482034,3.08,173.7,173.64,6.57237745]
[1752706482433,5.7552,173.67,173.64,6.57237745]
[1752706482632,3.08,173.66,173.64,6.57237745]
[1752706483139,3.08,173.66,173.65,3.29]
[1752706483436,3.08,173.68,173.65,3.29]
[1752706483637,3.08,173.69,173.67,3.29]
[1752706483835,3.08,173.69,173.68,3.29]
[1752706486029,3.12080112,173.7,173.66,3.28237745]
[1752706486228,3.12080112,173.7,173.69,3.29]
[1752706487538,3.08,173.69,173.68,3.29]
[1752706488533,3.08,173.69,173.64,3.29]
[1752706488734,3.28237745,173.68,173.55,3.29]
[1752706489037,3.08,173.63,173.57,3.29]
[1752706489226,3.08,173.63,173.59,3.29]
[1752706489830,12.67941665,173.66,173.58,3.28237745]
[1752706490028,3.08,173.61,173.6,3.29]
[1752706490333,3.08,173.63,173.59,3.29]
[1752706490932,3.08,173.63,173.56,3.29]
[1752706491131,3.08,173.62,173.56,3.29]
[1752706492540,3.08,173.61,173.56,3.29]
[1752706492741,3.08,173.61,173.57,3.29]
[1752706493838,3.08,173.61,173.55,4.86425194]
[1752706494138,3.08,173.61,173.55,8.15425194]
[1752706494641,3.08,173.61,173.55,3.29]
[1752706495034,5.7585,173.57,173.55,3.29]
[1752706495235,3.08,173.61,173.55,3.29]
[1752706495639,3.08,173.62,173.54,3.29]
[1752706495838,3.08,173.61,173.54,3.29]
[1752706497244,3.08,173.6,173.51,4.86425194]
[1752706497447,3.08,173.59,173.52,3.29]
[1752706498135,15.75941665,173.59,173.52,3.29]
[1752706498332,3.08,173.58,173.52,3.29]
[1752706499138,5.7591,173.55,173.52,3.29]
[1752706499436,8.8391,173.55,173.52,3.29]
[1752706500338,8.8393,173.54,173.53,3.29]
[1752706500737,17.54366859,173.59,173.54,3.29]
[1752706500938,8.8389,173.55,173.54,3.29]
[1752706501232,3.08,173.54,173.53,3.29]
[1752706502141,3.08,173.57,173.5,3.29]
[1752706502337,3.08,173.57,173.52,3.29]
[1752706502643,5.7589,173.55,173.52,3.29]
[1752706502947,3.08,173.55,173.52,3.29]
[1752706503136,9.0392,173.54,173.53,3.14]
[1752706503332,3.28,173.54,173.46,734.36]
[1752706503540,3.28,173.54,173.49,3.14]
[1752706503746,17.54366859,173.59,173.49,3.14]
[1752706503747,3.28,173.58,173.49,3.14]
[1752706504135,3.28,173.58,173.51,3.14]
[1752706504844,3.28,173.58,173.5,4.86425194]
[1752706504845,5.7598,173.53,173.5,4.86425194]
[1752706505140,9.0398,173.53,173.52,3.14]
[1752706505648,5.7598,173.53,173.52,3.14]
[1752706505940,9.0398,173.53,173.52,3.14]
[1752706506334,5.7598,173.53,173.5,4.86425194]
[1752706506532,4.86425194,173.59,173.5,4.86425194]
[1752706506533,5.7593,173.54,173.51,3.14]
[1752706506738,9.0393,173.54,173.51,3.14]
[1752706506938,9.0393,173.54,173.52,3.14]
[1752706507139,3.28,173.53,173.52,3.14]
[1752706507740,9.0389,173.55,173.51,3.14]
[1752706508043,3.28,173.54,173.51,3.14]
[1752706508446,3.28,173.58,173.53,3.14]
[1752706508648,12.67941665,173.62,173.54,4.86425194]
[1752706508841,9.0382,173.57,173.56,3.14]
[1752706509246,3.28,173.61,173.49,178.5208]
[1752706509444,3.28,173.6,173.52,3.14]
[1752706509836,3.28,173.6,173.54,3.14]
[1752706510550,9.0386,173.56,173.55,3.14]
[1752706514147,5.7586,173.56,173.55,3.14]
[1752706514847,9.0386,173.56,173.55,3.14]
[1752706515448,12.67941665,173.62,173.55,3.28450099]
[1752706515747,3.28,173.61,173.56,3.14]
[1752706515947,19.24391764,173.61,173.56,3.14]
[1752706516151,3.28,173.6,173.56,3.14]
[1752706516342,5.7582,173.57,173.56,3.14]
[1752706516547,9.0382,173.57,173.56,3.14]
[1752706518142,15.96391764,173.63,173.47,3.14]
[1752706518344,3.28,173.57,173.53,3.28450099]
[1752706518544,9.0385,173.56,173.55,3.14]
[1752706519251,5.7585,173.56,173.55,3.14]
[1752706521549,9.0385,173.56,173.55,3.14]
[1752706523249,3.28,173.57,173.54,3.14]
[1752706523456,3.28,173.61,173.55,3.28450099]
[1752706523645,3.28,173.61,173.56,3.14]
[1752706524057,5.7579,173.58,173.56,3.14]
[1752706524354,9.0379,173.58,173.55,3.28450099]
[1752706524553,9.0379,173.58,173.57,3.14]
[1752706527857,3.28,173.58,173.57,3.14]
[1752706529153,3.28,173.6,173.57,6.42450099]
[1752706529457,12.67941665,173.64,173.58,3.14]
[1752706529656,3.28,173.64,173.6,3.14]
[1752706529856,3.28,173.63,173.6,3.14]
[1752706530056,9.0365,173.62,173.61,3.14]
[1752706532656,5.7563,173.63,173.61,3.14]
[1752706532851,3.28,173.64,173.62,3.28450099]
[1752706533155,3.27,173.64,173.63,3.3]
[1752706533750,12.67941665,173.66,173.53,3.3]
[1752706533751,3.27,173.65,173.53,3.3]
[1752706533958,3.27,173.65,173.56,3.3]
[1752706533959,12.67941665,173.6,173.56,3.3]
[1752706534152,3.27,173.59,173.54,3.3]
[1752706534359,15.94941665,173.57,173.54,3.3]
[1752706534659,3.27,173.55,173.52,3.28450099]
[1752706534858,12.67941665,173.58,173.54,3.28450099]
[1752706535059,12.67941665,173.6,173.54,3.28450099]
[1752706535261,3.27,173.58,173.55,3.3]
[1752706535466,9.0279,173.58,173.55,3.3]
[1752706535763,3.27,173.58,173.55,3.3]
[1752706535966,9.028,173.58,173.55,3.3]
[1752706536462,3.27,173.54,173.52,3.28450099]
[1752706536770,3.27,173.54,173.53,3.3]
[1752706537161,9.0292,173.54,173.53,3.3]
[1752706537360,3.27,173.54,173.53,3.3]
[1752706537658,9.0288,173.56,173.53,3.3]
[1752706537860,12.67941665,173.57,173.55,3.3]
[1752706538065,15.94941665,173.58,173.55,3.3]
[1752706538265,9.0284,173.57,173.55,3.3]
[1752706538459,5.7584,173.57,173.55,3.3]
[1752706538862,3.27,173.58,173.51,3.3]
[1752706539068,3.27,173.56,173.52,3.3]
[1752706539463,3.27,173.56,173.53,3.3]
[1752706539665,3.27,173.56,173.53,3.28450099]
[1752706539666,15.94941665,173.56,173.53,3.28450099]
[1752706539868,3.27,173.55,173.54,3.3]
[1752706540169,9.0292,173.55,173.54,3.3]
[1752706540365,5.7592,173.55,173.54,3.3]
[1752706540968,9.0292,173.55,173.54,3.3]
[1752706541368,3.27,173.55,173.54,3.3]
[1752706541569,12.67941665,173.57,173.54,3.3]
[1752706541764,3.27,173.58,173.54,3.3]
[1752706541968,9.0285,173.56,173.55,3.3]
[1752706542476,5.7592,173.54,173.53,3.3]
[1752706542677,3.27,173.57,173.54,3.3]
[1752706542878,3.27,173.57,173.53,3.3]
[1752706543174,9.0291,173.55,173.54,3.3]
[1752706543577,9.0286,173.56,173.52,3.28450099]
[1752706543769,9.0286,173.56,173.53,3.3]
[1752706544167,3.27,173.55,173.54,3.3]
[1752706544665,9.0289,173.55,173.54,3.3]
[1752706545272,5.7589,173.55,173.54,3.3]
[1752706545476,5.7586,173.56,173.54,3.3]
[1752706545672,12.67941665,173.57,173.52,3.28450099]
[1752706545872,3.27,173.56,173.53,3.3]
[1752706546068,9.0285,173.57,173.53,3.3]
[1752706546273,3.27,173.57,173.53,3.3]
[1752706546475,12.67941665,173.58,173.53,3.3]
[1752706546676,3.27,173.55,173.54,3.3]
[1752706549280,5.7587,173.56,173.54,3.3]
[1752706549779,9.0287,173.56,173.54,3.3]
[1752706550175,5.7589,173.55,173.53,3.3]
[1752706552982,5.7592,173.54,173.53,3.3]
[1752706553579,12.67941665,173.58,173.53,9.0595]
[1752706553781,15.94941665,173.58,173.55,3.3]
[1752706554083,3.27,173.58,173.55,3.3]
[1752706554281,5.7584,173.57,173.55,3.3]
[1752706554582,3.27,173.58,173.55,3.3]
[1752706554881,5.7585,173.57,173.55,3.3]
[1752706555278,12.67941665,173.59,173.55,3.3]
[1752706555582,5.758,173.58,173.57,3.3]
[1752706555879,5.758,173.58,173.57,0.65985504]
[1752706556382,9.028,173.58,173.57,0.65985504]
[1752706562788,5.758,173.58,173.57,0.65985504]
[1752706562989,3.38,173.67,173.57,0.65985504]
[1752706563191,3.38,173.67,173.6,3.18]
[1752706563385,9.1374,173.6,173.59,3.18]
[1752706563587,3.38,173.6,173.59,3.18]
[1752706563883,5.7567,173.62,173.59,5.7575]
[1752706564086,3.38,173.69,173.62,3.18]
[1752706564286,3.38,173.69,173.63,3.28450099]
[1752706564688,9.1361,173.64,173.63,3.28450099]
[1752706565291,9.1361,173.64,173.63,6.46450099]
[1752706566282,9.1361,173.64,173.63,3.18]
[1752706566589,3.38,173.64,173.6,6.46450099]
[1752706567189,3.38,173.63,173.62,6.46450099]
[1752706567787,3.38,173.63,173.62,3.28450099]
[1752706568291,9.1362,173.63,173.62,3.28450099]
[1752706568492,3.38,173.63,173.6,3.28450099]
[1752706568792,5.7568,173.62,173.6,6.46450099]
[1752706568987,3.38,173.67,173.6,6.46450099]
[1752706569491,3.38,173.62,173.61,3.18]
[1752706571186,9.1365,173.62,173.61,3.18]
[1752706571386,3.38,173.69,173.6,3.28450099]
[1752706571689,14.79250099,173.7,173.59,3.18]
[1752706571690,5.7562,173.63,173.62,3.28450099]
[1752706571894,9.1362,173.63,173.62,3.28450099]
[1752706572387,3.38,173.6,173.59,3.18]
[1752706572588,3.38,173.6,173.53,3.18]
[1752706572789,5.7581,173.58,173.55,3.18]
[1752706572994,3.38,173.57,173.56,3.28450099]
[1752706573394,3.38,173.65,173.57,3.18]
[1752706573696,3.38,173.65,173.6,6.46450099]
[1752706574092,3.38,173.65,173.62,3.28450099]
[1752706574692,3.38,173.63,173.62,3.28450099]
[1752706574894,3.28450099,173.68,173.59,3.18]
[1752706575094,12.67941665,173.67,173.61,3.28450099]
[1752706575301,15.96391764,173.69,173.61,3.28450099]
[1752706575501,3.38,173.68,173.65,3.28450099]
[1752706576200,5.7552,173.66,173.65,3.28450099]
[1752706576497,9.1352,173.66,173.65,3.28450099]
[1752706577596,3.38,173.66,173.6,3.28450099]
[1752706578194,9.1369,173.61,173.6,3.28450099]
[1752706578495,3.38,173.61,173.6,3.28450099]
[1752706578794,3.38,173.68,173.6,6.46450099]
[1752706578991,3.38,173.68,173.66,3.28450099]
[1752706579392,5.7549,173.67,173.66,3.28450099]
[1752706579596,3.38,173.67,173.66,3.28450099]
[1752706579801,3.38,173.67,173.66,6.46450099]
[1752706580391,500.82450099,173.76,173.66,6.46450099]
[1752706580601,3.38,173.69,173.68,3.28450099]
[1752706581294,9.1345,173.69,173.68,3.28450099]
[1752706582295,9.1345,173.69,173.68,6.46450099]
[1752706582704,3.38,173.69,173.68,6.46450099]
[1752706582896,3.38,173.76,173.68,6.46450099]
[1752706583100,3.38,173.76,173.7,3.28450099]
[1752706583398,3.38,173.71,173.7,6.46450099]
[1752706583999,3.38,173.78,173.7,6.46450099]
[1752706584195,3.38,173.78,173.72,3.28450099]
[1752706585902,3.38,173.78,173.7,3.18]
[1752706586104,3.38,173.75,173.68,3.28450099]
[1752706586306,3.28450099,173.74,173.67,3.28450099]
[1752706586603,3.38,173.73,173.65,3.28450099]
[1752706586806,6.66450099,173.73,173.65,3.28450099]
[1752706587004,3.38,173.72,173.65,3.28450099]
[1752706587203,3.28450099,173.69,173.6,3.18]
[1752706587405,3.28450099,173.69,173.59,497.38]
[1752706587406,3.38,173.68,173.59,497.38]
[1752706587603,3.38,173.68,173.64,3.28450099]
[1752706588005,3.38,173.67,173.66,3.28450099]
[1752706589309,3.38,173.73,173.67,3.18]
[1752706589503,3.38,173.73,173.68,3.28450099]
[1752706590209,3.38,173.73,173.69,3.18]
[1752706592911,3.38,173.73,173.68,6.46450099]
[1752706593310,3.38,173.73,173.7,3.28450099]
[1752706594712,3.38,173.73,173.67,3.41]
[1752706594910,3.38,173.73,173.68,3.28450099]
[1752706595302,3.38,173.73,173.68,6.69450099]
[1752706596209,3.38,173.73,173.68,3.28450099]
[1752706596510,3.38,173.73,173.68,6.69450099]
[1752706597206,3.38,173.73,173.7,3.28450099]
[1752706597809,3.38,173.73,173.7,6.69450099]
[1752706598710,3.14,173.77,173.7,6.69450099]
[1752706599112,3.14,173.77,173.7,3.28450099]
[1752706600609,3.14,173.76,173.7,3.28450099]
[1752706601108,3.14,173.76,173.68,3.28450099]
[1752706601413,3.14,173.76,173.68,6.69450099]
[1752706603314,6.42450099,173.76,173.68,6.69450099]
[1752706603509,3.14,173.73,173.66,6.69450099]
[1752706603916,3.14,173.73,173.67,3.41]
[1752706604115,3.14,173.73,173.61,175.68450099]
[1752706604116,3.14,173.73,173.68,3.28450099]
[1752706604410,3.14,173.73,173.68,6.69450099]
[1752706604812,3.14,173.73,173.69,3.41]
[1752706605013,3.14,173.73,173.7,6.69450099]
[1752706605212,3.14,173.72,173.71,3.41]
[1752706607018,3.14,173.71,173.7,6.69450099]
[1752706607921,3.14,173.71,173.62,3.41]
[1752706608120,3.14,173.71,173.67,6.69450099]
[1752706608816,3.14,173.71,173.62,3.41]
[1752706609015,3.14,173.69,173.63,3.41]
[1752706610119,3.14,173.67,173.6,3.41]
[1752706610519,3.14,173.65,173.59,86.89235139]
[1752706610723,3.28450099,173.69,173.6,6.69450099]
[1752706610928,3.14,173.68,173.61,3.41]
[1752706611424,8.8964,173.63,173.61,3.41]
[1752706611922,8.8964,173.63,173.62,3.41]
[1752706612621,3.14,173.62,173.6,6.69450099]
[1752706612827,3.14,173.61,173.6,6.69450099]
[1752706613421,15.96391764,173.68,173.6,3.28450099]
[1752706613722,3.14,173.62,173.61,3.41]
[1752706614419,3.14,173.62,173.6,3.28450099]
[1752706614420,3.14,173.65,173.58,3.28450099]
[1752706614622,3.28450099,173.62,173.55,3.41]
[1752706614826,3.14,173.61,173.55,3.41]
[1752706615417,8.8983,173.57,173.56,3.41]
[1752706615614,3.14,173.61,173.57,3.41]
[1752706615827,5.7578,173.59,173.57,3.41]
[1752706616024,8.8978,173.59,173.57,3.41]
[1752706616527,3.14,173.64,173.57,3.41]
[1752706617024,5.7579,173.58,173.57,3.41]
[1752706617225,8.8979,173.58,173.57,3.41]
[1752706617923,8.8982,173.57,173.56,3.28450099]
[1752706618523,8.8982,173.57,173.56,6.69450099]
[1752706619026,3.14,173.6,173.53,264.83462095]
[1752706619226,3.14,173.6,173.53,268.11912194]
[1752706619619,3.14,173.6,173.54,3.41]
[1752706619819,5.7587,173.56,173.53,264.70912194]
[1752706620020,5.7587,173.56,173.55,3.41]
[1752706620226,3.14,173.63,173.56,3.41]
[1752706620423,5.7577,173.59,173.57,3.28450099]
[1752706620724,5.7577,173.59,173.58,3.41]
[1752706622725,5.7573,173.6,173.59,3.41]
[1752706622920,5.7573,173.6,173.59,6.69450099]
[1752706623129,3.19,173.64,173.59,6.69450099]
[1752706623326,5.7571,173.61,173.6,3.17]
[1752706623522,5.7571,173.61,173.6,6.45450099]
[1752706624225,5.7571,173.61,173.53,261.42462095]
[1752706624226,3.19,173.63,173.56,6.45450099]
[1752706624829,5.7581,173.58,173.56,6.45450099]
[1752706625027,5.7581,173.58,173.57,3.17]
[1752706625924,5.7581,173.58,173.56,3.28450099]
[1752706625925,5.7582,173.57,173.56,3.28450099]
[1752706626120,8.9482,173.57,173.56,3.17]
[1752706626321,3.19,173.57,173.54,3.17]
[1752706626528,5.7592,173.54,173.53,92.34912194]
[1752706626729,8.9492,173.54,173.53,92.34912194]
[1752706626921,8.9492,173.54,173.53,89.06462095]
[1752706627528,8.9492,173.54,173.53,92.34912194]
[1752706627727,8.9492,173.54,173.53,95.51912194]
[1752706629029,8.9492,173.54,173.53,92.34912194]
[1752706629223,8.9492,173.54,173.53,92.23462095]
[1752706629628,8.9492,173.54,173.53,95.51912194]
[1752706630634,8.9492,173.54,173.53,92.23462095]
[1752706630834,8.9492,173.54,173.53,95.51912194]
[1752706631235,11.5111,173.65,173.53,92.34912194]
[1752706631543,3.19,173.61,173.54,3.17]
[1752706632241,3.28450099,173.62,173.55,3.17]
[1752706632440,3.19,173.61,173.53,95.51912194]
[1752706632643,5.7591,173.55,173.53,95.51912194]
[1752706632843,8.9491,173.55,173.53,95.51912194]
[1752706633040,3.19,173.54,173.53,95.51912194]
[1752706633735,8.9491,173.55,173.54,3.17]
[1752706633931,3.19,173.55,173.54,3.17]
[1752706634141,8.9487,173.56,173.55,3.17]
[1752706635640,8.9492,173.54,173.53,89.06462095]
[1752706635945,8.9492,173.54,173.53,92.23462095]
[1752706636145,3.19,173.52,173.51,3.17]
[1752706636438,3.19,173.57,173.51,3.17]
[1752706636642,3.19,173.57,173.5,3.28450099]
[1752706636643,5.7591,173.55,173.54,6.45450099]
[1752706636840,8.9491,173.55,173.54,6.45450099]
[1752706637341,8.9491,173.55,173.54,3.28450099]
[1752706637544,5.7594,173.54,173.52,6.45450099]
[1752706637744,3.19,173.53,173.52,6.45450099]
[1752706638342,5.7594,173.54,173.52,6.45450099]
[1752706638644,8.949,173.55,173.53,3.17]
[1752706638844,8.949,173.55,173.54,3.17]
[1752706639150,3.19,173.54,173.53,3.17]
[1752706639444,8.9494,173.54,173.53,3.17]
[1752706640733,5.7595,173.53,173.52,3.28450099]
[1752706640938,3.19,173.53,173.5,6.45450099]
[1752706641343,3.19,173.53,173.5,3.28450099]
[1752706641546,3.19,173.53,173.48,6.45450099]
[1752706641738,3.19,173.53,173.48,3.28450099]
[1752706642250,3.19,173.53,173.46,129.36550974]
[1752706642446,3.19,173.53,173.46,132.65001073]
[1752706642635,3.19,173.53,173.46,129.48001073]
[1752706642841,5.7609,173.49,173.46,129.48001073]
[1752706643147,3.28450099,173.54,173.47,3.28450099]
[1752706643348,3.19,173.5,173.47,6.45450099]
[1752706643535,3.19,173.5,173.46,3.28450099]
[1752706643733,3.28450099,173.55,173.47,3.17]
[1752706643936,3.19,173.48,173.47,3.17]
[1752706644139,3.19,173.55,173.43,3.17]
[1752706644343,3.19,173.51,173.49,3.28450099]
[1752706644852,3.19,173.5,173.49,3.17]
[1752706645143,3.19,173.5,173.43,240.28450099]
[1752706645342,3.19,173.5,173.47,3.28450099]
[1752706645542,3.19,173.54,173.43,3.17]
[1752706645744,3.19,173.47,173.46,3.28450099]
[1752706646037,3.28450099,173.49,173.42,3.17]
[1752706646236,3.28450099,173.47,173.4,3.17]
[1752706646440,3.28450099,173.47,173.41,3.17]
[1752706646644,3.19,173.42,173.38,3.28450099]
[1752706646849,3.19,173.41,173.39,3.17]
[1752706647140,5.7634,173.42,173.39,3.17]
[1752706647341,3.19,173.48,173.4,3.28450099]
[1752706647543,3.19,173.48,173.43,3.17]
[1752706647944,3.19,173.45,173.43,3.17]
[1752706648145,3.19,173.45,173.42,3.28450099]
[1752706648146,3.19,173.44,173.41,3.17]
[1752706648338,3.19,173.44,173.42,6.45450099]
[1752706648951,5.7619,173.46,173.42,3.28450099]
[1752706648952,5.762,173.46,173.42,3.28450099]
[1752706649249,3.19,173.45,173.43,3.17]
[1752706649544,3.19,173.45,173.42,3.28450099]
[1752706649545,3.19,173.44,173.42,3.28450099]
[1752706649750,3.19,173.44,173.42,6.45450099]
[1752706650339,3.28450099,173.5,173.42,6.45450099]
[1752706650543,3.19,173.47,173.42,3.17]
[1752706651147,3.19,173.44,173.42,3.17]
[1752706651741,3.19,173.49,173.43,6.45450099]
[1752706651948,9.43249486,173.53,173.45,3.28450099]
[1752706652144,3.19,173.5,173.48,3.17]
[1752706652451,3.19,173.5,173.47,3.28450099]
[1752706652639,3.19,173.48,173.47,3.28450099]
[1752706653547,3.19,173.5,173.48,3.24]
[1752706653750,3.19,173.54,173.49,3.24]
[1752706653946,3.19,173.54,173.49,6.52450099]
[1752706654151,3.19,173.51,173.49,6.52450099]
[1752706654740,3.19,173.57,173.5,3.24]
[1752706655054,3.19,173.59,173.54,3.28450099]
[1752706655646,5.758,173.58,173.54,6.52450099]
[1752706655843,3.19,173.57,173.55,3.24]
[1752706656048,3.19,173.59,173.54,3.28450099]
[1752706656351,3.19,173.58,173.54,3.28450099]
[1752706656555,3.19,173.58,173.51,3.24]
[1752706656853,3.19,173.55,173.52,6.52450099]
[1752706657053,3.19,173.54,173.53,3.24]
[1752706658549,5.7586,173.56,173.53,3.24]
[1752706658755,3.19,173.55,173.54,6.52450099]
[1752706658949,3.19,173.55,173.54,3.28450099]
[1752706659150,3.19,173.54,173.53,3.28450099]
[1752706659954,3.19,173.56,173.44,3.24]
[1752706660159,3.19,173.55,173.53,6.52450099]
[1752706660644,3.19,173.55,173.54,3.24]
[1752706661148,3.19,173.55,173.53,3.28450099]
[1752706661353,3.19,173.54,173.53,6.52450099]
[1752706661753,5.7594,173.54,173.48,5.7609]
[1752706661948,5.7594,173.54,173.53,3.28450099]
[1752706662552,8.9494,173.54,173.53,3.28450099]
[1752706663352,3.19,173.54,173.53,3.28450099]
[1752706663547,3.19,173.54,173.52,3.28450099]
[1752706663749,3.19,173.54,173.52,6.52450099]
[1752706663957,3.19,173.54,173.53,3.24]
[1752706664347,3.19,173.54,173.52,3.28450099]
[1752706664564,3.19,173.53,173.52,6.52450099]
[1752706664954,12.62249486,173.53,173.5,3.28450099]
[1752706665256,8.9502,173.51,173.5,3.28450099]
[1752706665458,3.19,173.51,173.5,3.28450099]
[1752706666457,3.19,173.51,173.48,3.28450099]
[1752706666864,12.62249486,173.51,173.48,6.52450099]
[1752706667058,3.19,173.5,173.48,6.52450099]
[1752706667255,9.43249486,173.54,173.49,3.24]
[1752706667452,9.43249486,173.55,173.54,3.24]
[1752706667857,12.62249486,173.55,173.54,6.52450099]
[1752706668164,3.19,173.55,173.54,6.52450099]
[1752706669466,3.19,173.57,173.52,3.24]
[1752706669657,3.19,173.56,173.52,3.28450099]
[1752706670052,5.7597,173.53,173.5,6.52450099]
[1752706670258,3.19,173.51,173.5,3.28450099]
[1752706670961,3.19,173.5,173.48,6.52450099]
[1752706671164,3.19,173.5,173.48,3.24]
[1752706671165,3.19,173.49,173.48,3.24]
[1752706671355,3.19,173.49,173.48,6.52450099]
[1752706671558,9.46743908,173.5,173.48,6.52450099]
[1752706671758,12.65743908,173.5,173.48,6.52450099]
[1752706672372,12.65743908,173.5,173.49,3.24]
[1752706672865,9.46743908,173.5,173.49,3.24]
[1752706673064,9.46743908,173.51,173.49,3.24]
[1752706673270,9.46743908,173.51,173.5,6.52450099]
[1752706673976,9.46743908,173.52,173.51,9.0002]
[1752706674166,3.19,173.55,173.51,12.28470099]
[1752706674365,3.19,173.55,173.52,3.24]
[1752706674869,3.19,173.56,173.54,6.52450099]
[1752706675061,3.19,173.56,173.54,3.28450099]
[1752706675258,3.19,173.56,173.55,3.24]
[1752706675464,5.7589,173.55,173.54,3.28450099]
[1752706675664,5.7589,173.55,173.54,6.52450099]
[1752706676373,8.9489,173.55,173.54,6.52450099]
[1752706677170,3.19,173.55,173.54,6.52450099]
[1752706677572,3.19,173.57,173.55,3.24]
[1752706677772,12.67941665,173.58,173.56,6.52450099]
[1752706678067,12.67941665,173.59,173.58,3.24]
[1752706678370,3.19,173.61,173.59,3.24]
[1752706678568,3.19,173.61,173.6,6.52450099]
[1752706679358,3.19,173.61,173.59,3.24]
[1752706679570,8.9471,173.61,173.6,3.28450099]
[1752706679766,8.9471,173.61,173.6,6.52450099]
[1752706680472,3.19,173.6,173.59,3.24]
[1752706680770,3.19,173.6,173.59,6.52450099]
[1752706680971,3.19,173.59,173.58,3.28450099]
[1752706681367,8.9475,173.59,173.58,3.28450099]
[1752706681581,3.19,173.59,173.54,3.28450099]
[1752706681974,5.7586,173.56,173.53,3.28450099]
[1752706682175,3.19,173.54,173.53,6.52450099]
[1752706682567,5.7586,173.56,173.53,6.52450099]
[1752706682772,3.19,173.55,173.54,3.24]
[1752706683074,3.4,173.57,173.54,5.7592]
[1752706683273,3.4,173.57,173.55,6.47450099]
[1752706683469,3.28450099,173.61,173.53,6.47450099]
[1752706683672,5.7589,173.55,173.53,3.28450099]
[1752706683871,3.4,173.54,173.53,3.28450099]
[1752706684277,3.4,173.58,173.51,6.47450099]
[1752706685070,3.4,173.55,173.51,3.19]
[1752706685679,3.4,173.54,173.51,3.19]
[1752706685881,3.4,173.54,173.5,8.05738076]
[1752706686179,3.4,173.52,173.5,8.05738076]